Cogmind - Beta 10.2 @@@ ROGUE MODE // 2021.06.21 @ 12:57:31 Player: Cookedpoo Result: Destroyed by as-93444 with Assembled Heavy Rifle Performance ------------- Evolutions (0) 0 Regions Visited (2) 400 Robots Destroyed (22) 110 Value Destroyed (505) 505 Prototype IDs (5) 100 Alien Tech Used (0) 0 Bonus (-15) -15 TOTAL SCORE: 1100 Bonus ------- Friendly Fire -15 Cogmind --------- Core Integrity 0/250 Matter 245/300 Energy 100/100 System Corruption 0% Temperature Cool (0) Movement Rolling (140) Ox6 Location -10/Mines Parts ------- > --- POWER (1) -------- (None) > --- PROPULSION (2) --- Light Treads Wheel > --- UTILITY (2) ------ High-capacity Storage Unit High-capacity Storage Unit > --- WEAPON (2) ------- (None) > --- INVENTORY (20) --- Light Treads Compact Wheel Compact Wheel High-capacity Storage Unit High-capacity Storage Unit High-capacity Storage Unit High-capacity Storage Unit Improved Signal Interpreter Medium Armor Plating Medium Armor Plating Medium Armor Plating Medium Armor Plating EM Pulse Gun Particle Cannon Particle Cannon Particle Cannon Light Assault Rifle Light Assault Rifle Light Assault Rifle Light Assault Rifle Peak State ------------ > --- POWER ------------ Light Ion Engine > --- PROPULSION ------- Light Treads Wheel > --- UTILITY ---------- Large Storage Unit Large Storage Unit > --- WEAPON ----------- Particle Cannon Particle Cannon > --- INVENTORY -------- Light Treads Compact Wheel Compact Wheel Improved Signal Interpreter Medium Armor Plating Medium Armor Plating Medium Armor Plating Medium Armor Plating EM Pulse Gun Medium Laser Particle Cannon Particle Cannon Light Assault Rifle Light Assault Rifle Light Assault Rifle Grenade Launcher [Rating: 11] Favorites ----------- Power Ion Engine Engine Ion Engine Propulsion Light Treads Treads Light Treads Wheel Wheel Utility Large Storage Unit Storage Large Storage Unit Weapon Particle Cannon Energy Gun EM Pulse Gun Energy Cannon Particle Cannon Ballistic Gun Light Assault Rifle Launcher Grenade Launcher Build | -11 -10 -10 ------- Run | Scr Mat Min Slots Evolved . | . . . Power . | . . . Propulsion . | . . . Utility . | . . . Weapon . | . . . Parts Attached 31 | 7 22 2 Power 3 | 1 2 . Engine 3 | 1 2 . Core . | . . . Reactor . | . . . Propulsion 13 | 2 10 1 Treads 7 | 1 6 . Leg . | . . . Wheel 6 | 1 4 1 Hover . | . . . Flight . | . . . Utility 6 | 2 4 . Device . | . . . Storage 6 | 2 4 . Processor . | . . . Hackware . | . . . Protection . | . . . Artifact . | . . . Weapon 9 | 2 6 1 Energy Gun 1 | 1 . . Energy Cannon 5 | . 5 . Ballistic Gun 1 | 1 . . Ballistic Cannon . | . . . Launcher 2 | . 1 1 Special Weapon . | . . . Impact Weapon . | . . . Slashing Weapon . | . . . Piercing Weapon . | . . . Special Melee Weapon . | . . . Unidentified Prototypes . | . . . Parts Lost 3 | . . 3 Power 1 | . . 1 Propulsion . | . . . Utility . | . . . Weapon 2 | . . 2 Highest Loss Streak 3 | . . 3 Average Slot Usage (%) 98 | . 98 78 Engine 13 | . 13 7 Treads 17 | . 17 14 Wheel 9 | . 9 14 Storage 28 | . 28 28 Energy Gun 3 | . 3 . Energy Cannon 18 | . 19 7 Ballistic Gun 3 | . 3 . Naked Turns . | . . . Heaviest Build 77 | 14 77 76 Greatest Support 40 | 16 40 10 Greatest Overweight (x) 7 | . 7 7 Average Overweight (x) 2 | . 2 6 Largest Inventory Capacity 20 | 8 20 20 Average Capacity 15 | 6 16 20 Most Carried 20 | 5 20 20 Average Carried 14 | 2 14 20 Final Capacity 20 | 8 20 20 Final Carried 20 | 5 20 20 Class Distribution -------------------- 77% | Mutant 22% | Hauler-Mutant Dominant Class ---------------- Mutant | -10/Materials Hauler-Mutant | -10/Mines Resources | -11 -10 -10 ----------- Run | Scr Mat Min Matter Collected 528 | 273 255 . Remotely . | . . . Salvage Created 737 | 89 618 30 Parts 55 | 4 44 7 Haulers Intercepted 1 | . 1 . Recyclers Shooed . | . . . Parts Field Recycled . | . . . Retrieved Matter . | . . . Parts Self-Destructed . | . . . Prevented . | . . . Kills | -11 -10 -10 ------- Run | Scr Mat Min Combat Hostiles Destroyed 20 | . 14 6 Guns 7 | . 7 . Cannons 6 | . 6 . AOE 7 | . 1 6 Classes Destroyed 7 | 1 5 1 Builder 1 | . 1 . Hauler 1 | . 1 . Recycler 1 | 1 . . Watcher 2 | . 2 . Swarmer 6 | . 3 3 Grunt 11 | . 11 . Assembled 3 | . . 3 Best Kill Streak 6 | 1 3 6 Combat Bots Only 6 | . 3 6 Max Kills in Single Turn 3 | 1 1 3 Gunslinging . | . . . Exploded 3 | . 1 3 Melee . | . . . Uniques/NPCs Destroyed . | . . . Combat | -11 -10 -10 -------- Run | Scr Mat Min Damage Taken 928 | . 451 477 Core 250 | . 126 124 Absorbed by Shields . | . . . Core Remaining (%) 100 | 100 . . Volleys Fired 53 | 3 45 5 Largest 2 | 2 2 1 Hottest 136 | 60 136 30 Shots Fired 99 | 6 88 5 Gun 56 | 6 50 . Cannon 37 | . 37 . Launcher 6 | . 1 5 Special . | . . . Kinetic 28 | 3 25 . Thermal 37 | . 37 . Explosive 6 | . 1 5 Electromagnetic 28 | 3 25 . Robot Hit Streak 10 | 4 10 2 Robot Miss Streak 2 | 1 2 1 Penetration Max . | . . . Secondary Targets . | . . . Shots Hit Robots 62 | 4 55 3 Core Hits 41 | 2 27 12 Critical Hits . | . . . Critical Kills . | . . . Critical Parts Destroyed . | . . . Melee Attacks . | . . . Impact . | . . . Slashing . | . . . Piercing . | . . . Sneak Attacks . | . . . Combat Hostiles . | . . . Follow-up Attacks . | . . . Damage Inflicted 1399 | 54 928 417 Guns 388 | 54 334 . Cannons 468 | . 468 . Explosions 543 | . 126 417 Melee . | . . . Ramming . | . . . Kinetic 93 | 17 76 . Thermal 594 | . 594 . Explosive 417 | . . 417 Electromagnetic 295 | 37 258 . Impact . | . . . Slashing . | . . . Piercing . | . . . Highest Corruption . | . . . Average Corruption . | . . . Corruption Purged . | . . . Overload Shots . | . . . Overflow Damage 16 | . 11 5 Projectiles 11 | . 11 . Explosions 5 | . . 5 Melee . | . . . Knockbacks . | . . . Impact . | . . . Kinetic . | . . . Secondary . | . . . Self-Inflicted Damage 92 | . 40 52 Shots 4 | . 2 2 Rammed . | . . . Targets Rammed . | . . . Kicked . | . . . Crushed . | . . . Highest Temperature 307 | 20 307 15 Average Temperature 89 | 15 93 10 Received Heat Transfer 194 | . 174 20 Siege Activations . | . . . Robots Corrupted . | . . . Combat Hostiles . | . . . Parts Fried . | . . . Impact Corruptions . | . . . Robots Melted . | . . . Combat Hostiles . | . . . Parts Melted 2 | . 2 . Heat Transferred 914 | . 914 . Parts Sabotaged . | . . . Parts Stolen . | . . . Parts Stripped . | . . . Power Chain Reactions 2 | . 2 . Missiles Intercepted . | . . . Alert | -11 -10 -10 ------- Run | Scr Mat Min Peak Influence 242 | 5 242 112 Initial 12 | . 3 12 Average 114 | 1 120 89 Maximum Alert Level 1 | . 1 . Low Security (%) 80 | 100 79 100 Level 1 19 | . 20 . Level 2 . | . . . Level 3 . | . . . Level 4 . | . . . Level 5 . | . . . High Security . | . . . Max Security . | . . . Squads Dispatched 2 | . 2 . Investigation 2 | . 2 . Extermination . | . . . Reinforcement . | . . . Assault . | . . . Garrison . | . . . Intercept . | . . . Construction Impeded . | . . . Haulers Reinforced . | . . . Stealth | -11 -10 -10 --------- Run | Scr Mat Min Distress Signals 1 | . 1 . Communications Jammed . | . . . Distress Signals . | . . . Times Spotted 38 | . 23 15 Peak Tracking Total 11 | . 5 11 Tactical Retreats . | . . . Traps | -11 -10 -10 ------- Run | Scr Mat Min Traps Triggered . | . . . Indirectly . | . . . Trap Hack Attempts . | . . . Triggered . | . . . Disarmed . | . . . Reprogrammed . | . . . Reused . | . . . Traps Extracted . | . . . Installed . | . . . Triggered . | . . . Machines | -11 -10 -10 ---------- Run | Scr Mat Min Machines Disabled . | . . . Max in Single Turn . | . . . Machines Sabotaged . | . . . Garrisons Compromised . | . . . Overloaded Fab Kills . | . . . Fab Network Shutdowns . | . . . Hacking | -11 -10 -10 --------- Run | Scr Mat Min Machines Accessed 11 | . 11 . Terminals 8 | . 8 . Fabricators . | . . . Repair Stations 1 | . 1 . Recycling Units 2 | . 2 . Scanalyzers . | . . . Garrison Access . | . . . Total Hacks 44 | . 44 . Successful 26 | . 26 . Failed 18 | . 18 . Catastrophic 1 | . 1 . Database Lockouts . | . . . Manual 20 | . 20 . Terminals 26 | . 26 . Fabricators . | . . . Repair Stations 14 | . 14 . Recycling Units 4 | . 4 . Scanalyzers . | . . . Garrison Access . | . . . Terminal Hacks 7 | . 7 . Robot Analysis 2 | . 2 . Prototype ID Bank 4 | . 4 . Locate Traps 1 | . 1 . Fabricator Hacks . | . . . Repair Station Hacks 14 | . 14 . Scan Component 7 | . 7 . Repair 7 | . 7 . Recycling Unit Hacks 2 | . 2 . Retrieve Components 2 | . 2 . Scanalyzer . | . . . Garrison Access Hacks . | . . . Unauthorized Hacks 3 | . 3 . Terminals 3 | . 3 . Assimilate 1 | . 1 . Botnet 2 | . 2 . Fabricators . | . . . Repair Stations . | . . . Recycling Units . | . . . Scanalyzers . | . . . Garrison Access . | . . . Data Cores Recovered . | . . . Used . | . . . Hacking Detections 10 | . 10 . Full Trace Events 2 | . 2 . Feedback Events . | . . . Feedback Blocked . | . . . Robot Schematics Acquired . | . . . Robots Built . | . . . Matter . | . . . Time . | . . . Total Robot Build Rating . | . . . Part Schematics Acquired . | . . . Parts Built . | . . . Matter . | . . . Time . | . . . Total Part Build Rating . | . . . Parts Repaired 7 | . 7 . Time 194 | . 194 . Parts Recycled . | . . . Recycled Matter . | . . . Retrieved Matter . | . . . Retrieved Components 19 | . 19 . Parts Scanalyzed . | . . . Part Schematics Acquired . | . . . Parts Damaged . | . . . Bothacking | -11 -10 -10 ------------ Run | Scr Mat Min Used RIF Installer . | . . . Robots Hacked . | . . . Non-combat . | . . . Combat . | . . . Robot Hacks Applied . | . . . Relay Couplers Released . | . . . Robots Rewired 1 | . 1 . Allies Hacked . | . . . Hacks Repelled . | . . . Allies | -11 -10 -10 -------- Run | Scr Mat Min Total Allies 2 | . 2 . Largest Group 1 | . 1 1 Highest-Rated Group 10 | . 10 10 Highest-Rated Ally 10 | . 10 10 Total Orders 2 | . 2 . FOLLOW 1 | . 1 . DROP 1 | . 1 . Ally Attacks . | . . . Total Damage . | . . . Kills . | . . . Allies Corrupted . | . . . Allies Melted . | . . . Intel | -11 -10 -10 ------- Run | Scr Mat Min Robot Analysis Total 2 | . 2 . Derelict Logs Recovered . | . . . Drone Launches . | . . . Drone Recoveries . | . . . Exploration | -11 -10 -10 ------------- Run | Scr Mat Min Turns Passed 1399 | 65 1295 39 Spaces Moved 706 | 45 643 18 Core 7 | 7 . . Treads 138 | . 138 . Legs . | . . . Wheels 561 | 38 505 18 Hover . | . . . Flight . | . . . Fastest Speed 50 | 50 90 140 Average Speed 127 | 92 129 144 Slowest Speed 180 | 100 180 150 Overloaded Moves . | . . . Propulsion Burnouts . | . . . Robots Hopped . | . . . Cave-ins Triggered . | . . . Exploration Rate (%) 37 | 3 97 12 Regions Visited 2 Branch Regions 1 Pre-discovered Areas . | . . . Known Exits Taken . | . . . Unknown Exits Taken 2 | 1 1 . Scrap Searched . | . . . Spaces Dug 9 | . 9 . Terrain Destroyed 39 | . 18 21 Melee . | . . . Projectile . | . . . AOE 39 | . 18 21 Terrain Rammed . | . . . Walls Destroyed . | . . . Machines Disabled . | . . . Actions | -11 -10 -10 --------- Run | Scr Mat Min Total 1106 | 59 1022 25 Wait 264 | . 264 . Move 704 | 44 642 18 Hop . | . . . Pick Up 30 | 5 25 . Fast Attach 11 | 7 4 . Attach . | . . . Detach . | . . . Swap 20 | . 18 2 Drop 12 | . 12 . Fire 53 | 3 45 5 Melee . | . . . Ram . | . . . Kick . | . . . Crush . | . . . Escape Stasis . | . . . Rewire 12 | . 12 . Trap . | . . . Miscellaneous . | . . . Route ------- -11/Scrapyard -10/Materials (discovered 4 exits: [*Mat x3] / [*Min]) -10/Mines History --------- Turn | Location | Event 37 | -11/Scrapyard | Discovered new exit (range 14) 66 | -11/Scrapyard | Entered Materials 313 | -10/Materials | Build established: Mutant 318 | -10/Materials | Discovered new exit (range 15) 538 | -10/Materials | Discovered new exit (range 16) 545 | -10/Materials | Core integrity fell below 50% 702 | -10/Materials | Discovered new exit (range 16) 745 | -10/Materials | Repaired Particle Cannon 779 | -10/Materials | Repaired Particle Cannon 811 | -10/Materials | Repaired Lgt. Treads 838 | -10/Materials | Repaired Lgt. Treads 865 | -10/Materials | Repaired Ion Engine 893 | -10/Materials | Repaired Lgt. Assault Rifle 920 | -10/Materials | Repaired Lgt. Assault Rifle 1110 | -10/Materials | Discovered new exit (range 3) 1361 | -10/Materials | Entered Mines 1361 | -10/Mines | Accompanied by 1 ally 1362 | -10/Mines | Assembled infested the area 1386 | -10/Mines | Build established: Hauler-Mutant 1388 | -10/Mines | Core integrity fell below 20% 1400 | -10/Mines | Destroyed by as-93444 with Assembled Heavy Rifle Last Messages --------------- 01325_ W-16 Scout destroyed. 01332_ U-05 Engineer lays Concrete. 01334_ R-06 Scavenger collects Lgt. Ion Engine. 01338_ R-06 Scavenger collects Signal Interpreter. 01342_ R-06 Scavenger collects Visual Processing Unit. LOCATION=UNKNOWN GOAL=ESCAPE 01362_ ALERT: Infestation in the mines, dispatching Demolisher response squad. 01363_ Destroyed Flight Unit. 01363_ S-10 Pest destroyed. 01378_ as-01801 destroyed. 01380_ as-76615 destroyed. 01383_ as-86096 destroyed. 01384_ as-66248 destroyed. 01386_ Grenade Launcher destroyed. 01386_ Particle Cannon destroyed. 01387_ Ion Engine destroyed. 01394_ as-52000 sneak attacks. 01394_ Technician 1a destroyed. Map ----- +----------------------------------------------------+ | ?????????????????????????????????????????????????? | | ?????????????????????????????????????????????????? | | ?????????????????????????????????????????????????? | | ?????????????????????????????????????????????????? | | ?????????????????????????????????????????????????? | | ?????????????????????????????????????????????????? | | ?????????????????????????????????????????????????? | | ?????????????????????????????????????????????????? | | ?????????????????????????????????????????????????? | | ?????????????????????????????????????????????????? | | ?????????????????????????????????????????????????? | | ?????????????????????????????????????????????????? | | ?????????????????????????????????????????????????? | | ?????????????????????????????????????????????????? | | ?????????????????????????????????????????????????? | | ?????????????????????????????????????????????????? | | ?????????????????????????###?????????????????????? | | ?????????????????????????# ?????????????????????? | | ?????????????????????????# #??##?????????????????? | | ?????????????????????????# ### #?????????????????? | | ?????????????????????????# ## #?????????????????? | | ?????????????????????????# ## #?????????????????? | | ?????????????????????????# ## #?????????????????? | | ???????????????????????### # #?????????????????? | | ???????????????????????# ##????????????????? | | ???????????????????????##@ ##???????????????? | | ???????????????????????# a[%% #???????????????? | | ???????????????????????# =[[ ##??????????????? | | ???????????????????????# * ##?????????????? | | ???????????????????????# #?????????????? | | ???????????????????????## % #?????????????? | | ???????????????? ??????##### #?????????????? | | ???????????????? ???##### aaa #?????????????? | | ??????????????? # ##a #?????????????? | | ??????????????? aa #?????????????? | | ??????????????? #?????????????? | | ??????????????? % ##?????????????? | | ??????????????? ####??????????????? | | ???????????????? ##?????????????????? | | ???????????????? ##???????????????????? | | ????????????????? ?????????????????????? | | ????????????????? ??????????????????????? | | ????????????????? ??????????????????????? | | ?????????????????? ???????????????????????? | | ?????????????????? ##???????????????????????? | | ??????????????????? #?????????????????????????? | | ??????????????????? #??????????????????????????? | | ????????????????????? ???????????????????????????? | | ?????????????????????????????????????????????????? | | ?????????????????????????????????????????????????? | +----------------------------------------------------+ Best States ------------- Heat Dissipation 25 Energy Generation 10 Energy Capacity 250 Matter Stores 300 Matter Capacity 300 Sight Range 16 Terrain Scan Density 10 Evasion (%) 42 Recoil Reduction 2 Item Schematics ----------------- None Robot Schematics ------------------ None Fabricated ------------ Nothing Alien Tech Used ----------------- None Achievements -------------- None Challenges ------------ None Game ------ Seed MappingNeutronUnit Manual? 0 Play Time 00:14:15 Cumulative 141.0 hours Start 2021.06.21 @ 12:44:14 End 2021.06.21 @ 12:57:31 Sessions 1 Manual Loads 0 Difficulty Rogue Special Mode None Game No. 119 Rogue 119 Adventurer 0 Explorer 0 Win Type - Total 3 Types 3/0/0/0/0/0/0/0/0 Lore% 64 Gallery% 69 Achievement% 55 Wizard Run 0 Options --------- ASCII 1 Keyboard 1 Movement Arrows Keybinds 0 Fullscreen 2 Font 18/TerminusBold Map View 76x50 Tactical HUD 1 Map Filters NONE Filters NONE Steam 1 RUN: 12911d42-a105-4460-8722-f4bb4bc0412d